bitfinex-derivatives/quotes_ETHF0:USTF0_20210702
["timestamp","ask_amount","ask_price","bid_price","bid_amount"]
[1625257401058,59.39707,2089.1,2089.0,2.20527]
[1625257401259,5.66977,2089.1,2089.0,2.20527]
[1625257401407,2.20527,2089.1,2089.0,2.20527]
[1625257403080,3.20527,2089.4,2089.0,2.20527]
[1625257403179,2.20527,2089.4,2089.0,2.20527]
[1625257404331,51.6025,2089.2,2089.0,2.20527]
[1625257405084,2.20527,2089.1,2089.0,2.20527]
[1625257407591,53.38367,2089.1,2089.0,2.20527]
[1625257408843,2.20527,2089.1,2089.0,2.20527]
[1625257415207,3.20527,2089.4,2089.0,4.41054]
[1625257415362,2.20527,2089.4,2089.0,4.41054]
[1625257416334,2.20527,2089.4,2089.0,7.49554]
[1625257416936,41.0625,2089.3,2089.0,7.49554]
[1625257417894,2.20527,2089.4,2089.0,7.49554]
[1625257419245,2.20527,2089.1,2089.0,7.49554]
[1625257419344,2.20527,2089.1,2089.0,4.41054]
[1625257422648,3.20527,2089.4,2089.0,4.41054]
[1625257422749,2.20527,2089.4,2089.0,4.41054]
[1625257423252,2.20527,2089.1,2089.0,4.41054]
[1625257424458,50.32117,2089.1,2089.0,4.41054]
[1625257424709,2.20527,2089.1,2089.0,4.41054]
[1625257427226,5.41054,2089.4,2089.0,4.41054]
[1625257427376,4.41054,2089.4,2089.0,4.41054]
[1625257428284,54.1351,2089.2,2089.0,4.41054]
[1625257429285,2.20527,2089.1,2089.0,4.41054]
[1625257430388,54.1351,2089.2,2089.0,4.41054]
[1625257431893,4.41054,2089.4,2089.0,4.41054]
[1625257434251,45.4247,2089.2,2089.0,4.41054]
[1625257434350,4.41054,2089.4,2089.0,4.41054]
[1625257434451,4.41054,2089.4,2089.0,2.20527]
[1625257435204,45.429,2089.1,2089.0,2.20527]
[1625257435301,47.63427,2089.1,2089.0,2.20527]
[1625257436551,2.20527,2089.1,2089.0,2.20527]
[1625257436803,3.20527,2089.4,2089.0,2.20527]
[1625257436953,2.20527,2089.4,2089.0,2.20527]
[1625257437451,4.41054,2089.4,2089.3,2.20527]
[1625257437652,4.41054,2089.4,2089.0,2.20527]
[1625257439054,58.8706,2089.2,2089.0,2.20527]
[1625257439155,4.41054,2089.4,2089.0,2.20527]
[1625257439407,4.41054,2089.4,2089.3,2.20527]
[1625257440410,4.41054,2089.4,2089.0,2.20527]
[1625257440509,7.35224,2089.4,2089.0,2.20527]
[1625257441164,48.5845,2089.1,2089.0,2.20527]
[1625257441378,50.78977,2089.1,2089.0,2.20527]
[1625257442632,50.78977,2089.1,2088.0,15.2109]
[1625257442735,1.0,2089.0,2087.1,5.0]
[1625257442833,1.0,2089.0,2086.7,4.50760869]
[1625257443090,1.0,2089.0,2086.8,14.62121193]
[1625257443188,1.0,2089.0,2086.8,14.4377]
[1625257443334,3.4864,2087.7,2086.8,14.4377]
[1625257443435,3.4864,2087.7,2087.6,4.41054]
[1625257443834,55.6519,2087.7,2087.6,4.41054]
[1625257443936,3.4864,2087.7,2087.6,4.41054]
[1625257444040,3.4864,2087.7,2087.6,2.20527]
[1625257444434,55.6469,2087.7,2087.6,2.20527]
[1625257444686,3.4864,2087.7,2087.6,2.20527]
[1625257445385,3.4864,2087.7,2087.6,4.41054]
[1625257446493,1.0,2088.2,2087.6,4.41054]
[1625257446594,2.20527,2088.3,2087.6,4.41054]
[1625257446694,3.20527,2088.3,2087.6,4.41054]
[1625257447196,2.20527,2088.3,2087.6,4.41054]
[1625257447396,2.20527,2088.3,2088.2,2.20527]
[1625257449002,1.0,2089.0,2088.2,5.71137]
[1625257449102,3.61072125,2089.5,2088.2,5.71137]
[1625257449450,2.20527,2089.4,2088.8,2.20527]
[1625257449701,14.7017,2089.2,2088.8,5.89357]
[1625257450151,3.20527,2089.4,2088.8,5.89357]
[1625257450251,2.20527,2089.4,2088.8,5.89357]
[1625257451408,2.20527,2089.4,2088.8,8.09884]
[1625257451509,44.6274,2089.1,2088.8,8.09884]
[1625257453061,1.0,2089.3,2088.8,8.09884]
[1625257453160,2.20527,2089.4,2088.8,8.09884]
[1625257453461,2.20527,2089.4,2089.1,2.20527]
[1625257454729,44.5071,2089.2,2089.1,2.20527]
[1625257455133,2.20527,2089.4,2088.8,2.20527]
[1625257455534,2.20527,2088.9,2088.8,2.20527]
[1625257455784,2.20527,2088.9,2088.8,50.51567]
[1625257457385,2.20527,2088.9,2088.8,2.20527]
[1625257460343,2.20527,2088.9,2088.8,59.73777]
[1625257463649,2.20527,2088.9,2088.8,2.20527]
[1625257464453,2.20527,2088.9,2088.8,43.01767]
[1625257466663,2.20527,2088.9,2088.8,2.20527]
[1625257470330,2.20527,2088.9,2088.8,53.25597]
[1625257472189,2.20527,2088.9,2088.8,56.77917]
[1625257476352,5.83304428,2088.9,2088.8,56.77917]
[1625257476549,7.25170951,2088.9,2088.8,56.77917]
[1625257477661,5.83304428,2088.9,2088.8,56.77917]
[1625257478060,2.20527,2088.9,2088.8,56.77917]
[1625257478361,3.62358582,2089.0,2088.8,56.77917]
[1625257478509,2.95488582,2089.0,2088.8,56.77917]
[1625257478659,2.95488582,2089.0,2088.8,61.77917]
[1625257478962,8.582e-05,2089.0,2088.8,61.77917]
[1625257479214,4.46245828,2089.7,2088.8,61.77917]
[1625257479614,1.41831803,2089.6,2089.5,4.41054]
[1625257479716,1.41831803,2089.6,2089.5,7.71954]
[1625257479813,1.41831803,2089.6,2089.5,64.57094]
[1625257480315,4.46304343,2089.8,2089.5,64.57094]
[1625257480416,4.46211603,2089.9,2089.5,64.57094]
[1625257481016,1.41815888,2089.8,2089.5,64.57094]
[1625257481417,4.46374328,2090.1,2089.5,64.57094]
[1625257481667,4.46374328,2090.1,2090.0,4.41054]
[1625257481766,7.7847008,2090.2,2090.0,4.41054]
[1625257482218,1.41813539,2090.1,2090.0,4.41054]
[1625257482668,5.88220952,2090.1,2090.0,4.41054]
[1625257483719,5.88220952,2090.1,2090.0,46.39134]
[1625257484673,1.41813539,2090.1,2090.0,46.39134]
[1625257485127,2.20527,2090.2,2090.0,46.39134]
[1625257485223,2.20527,2090.2,2090.0,50.09564]
[1625257485926,1.41807412,2090.1,2090.0,50.09564]
[1625257486224,2.20527,2090.2,2090.0,50.09564]
[1625257488743,2.20527,2090.2,2090.0,8.11484]
[1625257488841,2.20527,2090.2,2090.0,4.41054]
[1625257495521,2.20527,2090.2,2090.0,62.73964]
[1625257495622,2.20527,2090.2,2090.0,4.41054]
[1625257495823,4.54407,2090.2,2088.4,5.0]
[1625257495925,1.0,2090.1,2088.4,5.0]
[1625257496023,1.0,2090.1,2088.2,15.6646]
[1625257496326,57.2807,2089.4,2088.2,15.6646]
[1625257496624,57.2807,2089.4,2087.9,55.2542]
[1625257496924,57.2807,2089.4,2088.0,5.0]
[1625257497076,3.6219,2089.4,2088.0,5.0]
[1625257497424,1.0,2089.9,2088.0,5.0]
[1625257497729,1.0,2089.9,2089.8,2.20527]
[1625257497828,4.4510439,2090.1,2089.8,2.20527]
[1625257498125,2.20527,2090.2,2089.8,2.20527]
[1625257499777,2.20527,2090.2,2090.1,2.20527]
[1625257500680,2.20527,2090.2,2090.1,4.81997]
[1625257513068,48.93827,2090.2,2090.1,2.20527]
[1625257513168,2.20527,2090.2,2090.1,2.20527]
[1625257513920,2.77966485,2090.4,2090.1,2.20527]
[1625257514170,3.20527,2090.6,2090.1,2.20527]
[1625257514171,5.97698733,2090.6,2090.1,2.20527]
[1625257514270,4.97698733,2090.6,2090.1,2.20527]
[1625257515871,4.97698733,2090.6,2090.5,2.20527]
[1625257515974,4.97698733,2090.6,2090.5,5.92327]
[1625257516072,2.20527,2090.6,2090.5,5.92327]
[1625257516476,4.97645714,2090.6,2090.5,5.92327]
[1625257517731,2.20527,2090.6,2090.5,5.92327]
[1625257520634,2.20527,2090.6,2090.5,2.20527]
[1625257521303,4.50187,2090.6,2090.5,2.20527]
[1625257530072,54.95487,2090.6,2090.5,2.20527]
[1625257530478,57.72618915,2090.6,2090.5,2.20527]
[1625257530824,57.72618915,2090.6,2090.1,2.20527]
[1625257531429,2.77020141,2090.5,2090.1,2.20527]
[1625257531979,2.20527,2090.2,2090.1,2.20527]
[1625257532733,61.52817,2090.2,2090.1,2.20527]
[1625257534189,2.20527,2090.2,2090.1,2.20527]
[1625257534904,3.77020141,2090.5,2090.1,2.20527]
[1625257535007,2.77020141,2090.5,2090.1,2.20527]
[1625257535106,4.97459561,2090.6,2090.1,2.20527]
[1625257535505,2.20527,2090.6,2090.1,2.20527]
[1625257536057,2.20527,2090.6,2090.5,2.20527]
[1625257538673,5.19307,2090.6,2090.1,2.20527]
[1625257538773,5.19307,2090.6,2089.0,16.8003]
[1625257538874,1.0,2090.5,2089.0,15.8003]
[1625257539075,3.77087188,2090.5,2089.0,15.8003]
[1625257539225,51.4996,2089.3,2089.0,15.8003]
[1625257539325,54.9637,2089.3,2089.0,15.8003]
[1625257539478,54.9637,2089.3,2088.4,2.81805508]
[1625257539577,1.0,2089.2,2088.2,2.81849356]
[1625257540079,1.0,2089.2,2088.0,8.66404163]
[1625257540080,1.0,2089.2,2089.1,4.41054]
[1625257540180,54.9637,2089.3,2089.1,4.41054]
[1625257540781,3.4641,2089.3,2089.1,4.41054]
[1625257542191,47.151,2089.3,2089.1,4.41054]
[1625257543986,47.151,2089.3,2087.8,1.0]
[1625257544087,2.20527,2088.7,2088.6,2.20527]
[1625257544237,5.45037,2088.7,2088.6,2.20527]
[1625257544589,53.51057,2088.7,2088.6,2.20527]
[1625257544688,53.51057,2088.7,2087.6,59.2373]
[1625257544787,1.0,2088.6,2087.5,14.503]
[1625257545037,1.0,2088.6,2087.4,2.82003835]
[1625257545537,1.0,2088.6,2087.4,7.82003835]
[1625257545640,1.0,2088.6,2087.6,44.7066]
[1625257546037,2.20527,2088.0,2087.8,2.20527]
[1625257547345,3.2873,2088.1,2087.8,2.20527]
[1625257547445,1.0,2088.6,2087.8,2.20527]
[1625257547843,2.20527,2088.7,2087.9,1.0]
[1625257547944,5.52695728,2090.0,2087.9,6.0]
[1625257548197,2.76457925,2089.6,2089.3,4.81907]
[1625257548293,2.76457925,2089.6,2089.4,1.0]
[1625257548404,2.76457925,2089.6,2089.3,4.81907]
[1625257548611,2.76641963,2089.8,2089.3,4.81907]
[1625257549157,2.76679457,2089.9,2089.3,2.6138]
[1625257549407,14.609,2090.3,2089.1,3.20527]
[1625257549408,2.76780163,2090.0,2089.1,3.20527]
[1625257550018,2.76780163,2090.0,2089.1,6.58237]
[1625257550115,4.41054,2089.2,2089.1,6.58237]
[1625257550819,2.76780163,2090.0,2089.1,6.58237]
[1625257550921,2.76780163,2090.0,2089.1,11.58237]
[1625257551423,2.77459545,2090.6,2089.1,11.58237]
[1625257551873,2.77459545,2090.6,2090.3,42.1303]
[1625257551974,2.77459545,2090.6,2090.4,1.0]
[1625257552127,2.77485197,2090.8,2090.5,4.41054]
[1625257552275,2.77485197,2090.8,2090.5,5.41054]
[1625257552526,2.77577896,2090.9,2090.5,5.41054]
[1625257553675,49.9726,2090.8,2090.5,5.41054]
[1625257554127,2.20527,2090.6,2090.5,2.20527]
[1625257554430,4.50057,2090.6,2090.5,2.20527]
[1625257554578,9.25957,2090.6,2089.2,15.8192]
[1625257554730,10.67757581,2090.6,2089.2,15.8192]
[1625257554830,14.28091885,2090.6,2089.2,15.8192]
[1625257554979,2.77143434,2090.3,2089.2,15.8192]
[1625257555080,46.0647,2089.9,2089.2,15.8192]
[1625257555180,49.6987,2089.9,2089.2,15.8192]
[1625257555279,49.6987,2089.9,2089.1,1.0]
[1625257555379,49.6987,2089.9,2088.2,2.81972591]
[1625257555530,49.6987,2089.9,2088.2,5.0]
[1625257556131,2.20527,2089.5,2089.3,2.20527]
[1625257556685,2.20527,2089.5,2089.1,2.20527]
[1625257558186,2.20527,2089.2,2089.1,2.20527]
[1625257558586,4.79597,2089.2,2089.1,2.20527]
[1625257560092,51.23787,2089.2,2089.1,2.20527]
[1625257560241,4.79597,2089.2,2089.1,2.20527]
[1625257560342,2.20527,2089.2,2089.1,2.20527]
[1625257562145,2.20527,2089.2,2089.1,3.20527]
[1625257562746,2.20527,2089.2,2089.1,2.20527]
[1625257562997,2.20527,2089.2,2089.1,3.20527]
[1625257563246,2.77319664,2089.8,2089.1,3.20527]
[1625257563400,2.77319664,2089.8,2089.2,5.0]
[1625257563555,2.77319664,2089.8,2089.3,1.0]
[1625257563804,2.77739628,2090.5,2089.6,5.0]
[1625257563902,2.77739628,2090.5,2089.7,1.0]
[1625257564002,2.77739628,2090.5,2089.7,3.2873]
[1625257564152,2.77825963,2090.6,2089.7,8.2873]
[1625257564249,2.77825963,2090.6,2090.4,4.41054]
[1625257564350,2.77825963,2090.6,2090.4,9.09494]
[1625257565252,2.77901486,2090.7,2090.4,9.09494]
[1625257567069,1.94610007,2090.6,2090.4,9.09494]
[1625257568423,1.94649743,2090.5,2090.4,9.09494]
[1625257569177,1.94635303,2090.6,2090.4,9.09494]
[1625257574287,2.77866533,2090.8,2090.4,9.09494]
[1625257574288,1.945437,2090.7,2090.4,9.09494]
[1625257574536,3.61224252,2091.0,2090.5,5.0]
[1625257574637,5.55840843,2091.4,2090.6,1.0]
[1625257574736,8.33758714,2091.9,2090.6,1.0]
[1625257574737,8.0,2091.2,2090.6,1.0]
[1625257575738,42.079,2091.0,2090.6,1.0]
[1625257576291,42.079,2091.0,2090.9,4.41054]
[1625257576443,42.079,2091.0,2090.9,5.41054]
[1625257576697,42.079,2091.0,2089.2,4.51059199]
[1625257576941,42.079,2091.0,2088.9,15.1051]
[1625257577640,42.079,2091.0,2089.0,5.0]
[1625257577744,42.079,2091.0,2089.0,6.0]
[1625257578090,2.2916,2091.1,2089.0,6.0]
[1625257578190,2.2916,2091.1,2089.0,8.754]
[1625257578291,2.20527,2090.9,2090.7,2.20527]
[1625257581649,2.20527,2090.9,2090.8,4.378]
[1625257583299,2.20527,2090.9,2090.8,3.378]
[1625257583403,2.20527,2090.9,2090.8,1.0]
[1625257585253,8.0,2091.2,2090.8,3.9051]
[1625257586414,8.0,2091.2,2091.1,2.20527]
[1625257586514,8.0,2091.2,2091.1,3.20527]
[1625257598399,8.0,2091.2,2091.1,8.20527]
[1625257599552,4.376,2091.2,2091.1,8.20527]
[1625257601508,7.7429,2091.2,2091.1,3.20527]
[1625257602008,7.7429,2091.2,2091.1,8.20527]
[1625257602511,7.7429,2091.2,2091.1,65.57747]
[1625257602863,7.7429,2091.2,2091.1,60.57747]
[1625257603114,7.7429,2091.2,2091.1,65.57747]
[1625257604363,4.376,2091.2,2091.1,65.57747]
[1625257606917,4.376,2091.2,2091.1,67.89457]
[1625257608018,0.0001,2091.2,2091.1,67.89457]
[1625257610826,0.0001,2091.2,2091.1,65.57747]
[1625257611536,0.0001,2091.2,2091.1,8.20527]
[1625257617358,0.0001,2091.2,2091.1,3.20527]
[1625257619615,0.0001,2091.2,2091.1,8.20527]
[1625257634331,0.0001,2091.2,2091.1,10.75437]
[1625257634734,0.0001,2091.2,2091.1,27.998955]
[1625257639596,2.20527,2092.6,2091.1,27.998955]
[1625257640702,2.20527,2092.6,2092.5,4.41054]
[1625257640800,2.20527,2092.6,2092.5,57.21344]
[1625257640901,2.20527,2092.6,2092.5,5.41054]
[1625257641201,2.20527,2092.8,2092.5,5.41054]
[1625257641351,2.20527,2092.8,2092.5,10.41054]
[1625257641553,2.20527,2092.8,2092.5,5.41054]
[1625257641703,2.20527,2092.8,2092.5,10.41054]
[1625257641803,1.3903783,2093.3,2092.5,10.41054]
[1625257642105,18.37398358,2093.8,2092.5,10.41054]
[1625257642106,1.390621,2093.4,2092.5,10.41054]
[1625257642201,1.390621,2093.4,2092.5,5.41054]
[1625257642353,1.390621,2093.4,2092.5,4.41054]
[1625257642656,3.595891,2093.4,2093.3,4.41054]
[1625257642755,45.343891,2093.4,2093.3,4.41054]
[1625257643208,43.95327,2093.4,2093.3,3.27750429]
[1625257643559,45.34348222,2093.4,2093.3,3.27750429]
[1625257644263,43.95327,2093.4,2093.3,3.27750429]
[1625257645363,2.20527,2093.4,2093.3,3.27750429]
[1625257646467,52.79637,2093.4,2093.3,3.27750429]
[1625257646569,2.20527,2093.4,2093.3,3.27750429]
[1625257649122,2.20527,2093.6,2093.3,5.58470429]
[1625257649824,2.20527,2093.6,2093.5,41.4096]
[1625257650326,2.20527,2093.6,2093.3,3.27750429]
[1625257651076,1.39279799,2093.4,2093.3,3.27750429]
[1625257653330,1.3923412,2093.5,2093.3,3.27750429]
[1625257653782,1.3929434,2093.4,2093.3,3.27750429]
[1625257654934,2.20527,2093.6,2093.3,3.27750429]
[1625257657256,3.62332728,2093.7,2093.3,3.27750429]
[1625257657358,3.62332728,2093.7,2093.3,4.27750429]
[1625257658159,1.39428497,2093.7,2093.3,4.27750429]
[1625257658260,1.39428497,2093.7,2093.6,59.1009]
[1625257658709,1.39428497,2093.7,2093.6,2.20527]
[1625257659359,2.20527,2093.9,2093.6,2.20527]
[1625257660714,2.20527,2093.9,2093.8,2.20527]
[1625257661863,2.20527,2093.9,2093.8,1.0723424]
[1625257662064,1.1329276,2093.7,2093.6,2.20527]
[1625257662719,1.1329276,2093.7,2093.6,4.41054]
[1625257668827,2.52837582,2093.7,2093.6,4.41054]
[1625257669680,1.1329276,2093.7,2093.6,4.41054]
[1625257670031,1.1329276,2093.7,2093.0,1.0]
[1625257670333,1.39558582,2093.6,2093.0,1.0]
[1625257670784,1.39558582,2093.6,2093.5,4.41054]
[1625257670886,2.52888318,2093.7,2093.5,4.41054]
[1625257671236,1.39662654,2093.6,2093.5,4.41054]
[1625257671548,1.1329276,2093.7,2093.5,4.41054]
[1625257671549,1.39633865,2093.7,2093.5,4.41054]
[1625257671653,1.39633865,2093.7,2093.5,7.19384]
[1625257672053,1.39633865,2093.7,2093.5,66.99994]
[1625257672257,1.39633865,2093.7,2093.5,67.99994]
[1625257672904,1.39638147,2093.8,2093.5,67.99994]
[1625257674866,1.39678918,2094.0,2093.5,67.99994]
[1625257675268,1.39673104,2093.9,2093.5,67.99994]
[1625257675616,5.8367707,2094.3,2093.5,67.99994]
[1625257675617,1.39627078,2094.0,2093.5,67.99994]
[1625257676570,1.39523961,2093.9,2093.5,67.99994]
[1625257676820,1.39523961,2093.9,2093.8,2.20527]
[1625257677823,1.39523961,2093.9,2093.8,55.55887]
[1625257678271,1.39523961,2093.9,2093.8,54.55887]
[1625257678372,1.39625411,2094.0,2093.8,54.55887]
[1625257678871,1.39625411,2094.0,2093.9,2.20527]
[1625257679073,3.62929835,2094.4,2093.9,2.20527]
[1625257679374,1.39576331,2094.0,2093.9,2.20527]
[1625257679625,1.39576331,2094.0,2093.8,47.1811]
[1625257679724,4.41054,2094.5,2093.8,47.1811]
[1625257679725,3.62859582,2094.3,2093.8,47.1811]
[1625257680025,1.39536747,2093.9,2093.8,47.1811]
[1625257680826,1.39536747,2093.9,2093.8,51.59164]
[1625257680977,1.39536747,2093.9,2093.8,52.59164]
[1625257681327,4.41054,2094.5,2093.8,52.59164]
[1625257681328,1.39576012,2094.0,2093.8,52.59164]
[1625257681526,1.39576012,2094.0,2093.8,4.41054]
[1625257684894,1.39576012,2094.0,2093.8,5.41054]
[1625257685303,1.39576012,2094.0,2093.8,4.41054]
[1625257685602,1.39576012,2094.0,2093.9,1.0]
[1625257687360,1.39649711,2094.1,2093.9,1.0]
[1625257688266,1.39649711,2094.1,2094.0,56.4318]
[1625257688367,1.39649711,2094.1,2094.0,57.4318]
[1625257688966,1.39649711,2094.1,2094.0,1.0]
[1625257689568,1.39649711,2094.1,2093.8,4.41054]
[1625257689667,3.92699711,2094.1,2093.8,5.41054]
[1625257689768,2.5305,2094.1,2093.8,5.41054]
[1625257690120,1.3978907,2094.0,2093.8,5.41054]
[1625257690771,1.39798579,2094.1,2093.8,5.41054]
[1625257691524,1.39798579,2094.1,2093.8,8.84024]
[1625257692278,1.39810147,2094.2,2093.8,8.84024]
[1625257692381,1.39810147,2094.2,2094.1,45.6581]
[1625257692476,1.39810147,2094.2,2094.1,46.6581]
[1625257692877,1.39810147,2094.2,2094.1,48.86337]
[1625257692977,1.39810147,2094.2,2094.1,3.20527]
[1625257693132,1.39823619,2094.4,2094.1,3.20527]
[1625257693579,1.39835595,2094.3,2094.1,3.20527]
[1625257694081,2.20527,2094.5,2094.1,3.20527]
[1625257694480,2.20527,2094.5,2094.1,2.20527]
[1625257694880,1.39794202,2094.2,2094.1,2.20527]
[1625257695430,1.39794202,2094.2,2094.1,48.39897]
[1625257696884,1.39794202,2094.2,2094.1,2.20527]
[1625257698890,3.60321202,2094.2,2094.1,2.20527]
[1625257699491,3.60321202,2094.2,2094.1,55.25567]
[1625257700104,1.39794202,2094.2,2094.1,55.25567]
[1625257700192,1.39794202,2094.2,2094.1,2.20527]
[1625257700593,2.20527,2094.5,2094.1,2.20527]
[1625257700895,1.39533607,2094.2,2094.1,53.31757]
[1625257701192,1.39533607,2094.2,2094.1,3.20527]
[1625257702947,3.60060607,2094.2,2094.1,3.20527]
[1625257703713,1.39533607,2094.2,2094.1,3.20527]
[1625257704668,1.3948492,2094.3,2094.1,3.20527]
[1625257704768,1.3948492,2094.3,2094.1,6.36857]
[1625257704920,1.3948492,2094.3,2094.2,2.20527]
[1625257705018,1.3948492,2094.3,2094.2,3.20527]
[1625257706070,1.39521377,2094.4,2094.2,3.20527]
[1625257706568,1.39515895,2094.3,2094.2,3.20527]
[1625257707622,1.39632909,2094.7,2094.2,3.20527]
[1625257708226,1.39666038,2094.8,2094.2,3.20527]
[1625257708323,1.39666038,2094.8,2094.7,43.2977]
[1625257708474,1.39666038,2094.8,2094.7,45.8037]
[1625257708924,1.39666038,2094.8,2094.7,46.8037]
[1625257709026,1.39666038,2094.8,2094.7,51.21424]
[1625257709228,1.39666038,2094.8,2094.7,7.91654]
[1625257710329,1.39666038,2094.8,2094.7,5.41054]
[1625257711731,1.39666038,2094.8,2094.7,4.41054]
[1625257713135,1.39666038,2094.8,2094.7,5.41054]
[1625257714640,1.39666038,2094.8,2094.7,4.41054]
[1625257714788,1.39666038,2094.8,2094.7,5.41054]
[1625257717592,2.20527,2095.2,2094.7,5.41054]
[1625257717997,2.79167824,2094.9,2094.7,5.41054]
[1625257718497,1.39589585,2094.8,2094.7,5.41054]
[1625257719411,1.39589585,2094.8,2094.7,4.41054]
[1625257719700,2.79192724,2094.9,2094.7,4.41054]
[1625257721066,2.20527,2094.8,2094.7,4.41054]
[1625257721468,2.20527,2094.8,2094.0,1.0]
[1625257721915,1.39568693,2094.5,2094.0,1.0]
[1625257722016,55.4021,2094.3,2094.0,1.0]
[1625257722165,4.25018693,2094.5,2094.0,1.0]
[1625257722267,1.39539739,2094.4,2094.0,1.0]
[1625257722717,1.3948355,2094.2,2094.0,1.0]
[1625257723069,4.41054,2094.1,2094.0,1.0]
[1625257723620,5.80569424,2094.1,2094.0,1.0]
[1625257723820,5.80569424,2094.1,2094.0,46.7168]
[1625257724024,5.80569424,2094.1,2094.0,1.0]
[1625257724274,4.41054,2094.1,2094.0,1.0]
[1625257724673,4.41054,2094.1,2093.8,1.0]
[1625257725524,5.80612991,2094.1,2093.8,1.0]
[1625257727330,5.80612991,2094.1,2094.0,44.6739]
[1625257727629,5.80612991,2094.1,2093.8,1.0]
[1625257729533,1.39600514,2094.0,2093.8,1.0]
[1625257730236,1.39600514,2094.0,2093.9,55.5816]
[1625257730335,4.41054,2094.1,2093.8,1.0]
[1625257732138,5.80743836,2094.1,2093.8,1.0]
[1625257734044,5.80743836,2094.1,2093.9,44.277]
[1625257734495,5.80743836,2094.1,2093.9,45.277]
[1625257736849,1.39743832,2094.0,2093.9,45.277]
[1625257737197,5.80804922,2094.1,2093.9,45.277]
[1625257737299,5.80804922,2094.1,2093.9,49.0705]
[1625257737450,1.39781239,2094.0,2093.9,49.0705]
[1625257738049,1.39781239,2094.0,2093.9,4.7935]
[1625257739001,1.39781239,2094.0,2093.9,51.2045]
[1625257740303,1.39781239,2094.0,2093.9,4.7935]
[1625257740955,1.39781239,2094.0,2093.9,48.4717]
[1625257741505,7.20682444,2094.1,2093.9,48.4717]
[1625257741959,4.41054,2094.1,2093.9,48.4717]
[1625257742158,4.41054,2094.1,2093.9,4.7935]
[1625257742360,7.20393646,2094.1,2093.9,1.0]
[1625257742459,7.20393646,2094.1,2093.8,1.0]
[1625257742610,7.20393646,2094.1,2094.0,49.2483]
[1625257742758,4.41054,2094.1,2094.0,49.2483]
[1625257742859,4.41054,2094.1,2093.8,1.0]
[1625257743208,4.41054,2094.1,2093.7,2.20527]
[1625257743459,7.19985303,2094.1,2093.7,2.20527]
[1625257743724,7.19985303,2094.1,2091.7,5.63485263]
[1625257743975,1.39285322,2093.8,2092.5,1.40877304]
[1625257744330,1.39285322,2093.8,2092.4,15.6602]
[1625257744331,1.39249613,2093.6,2092.9,90.7381]
[1625257744634,1.39219771,2093.5,2092.9,90.7381]
[1625257745084,1.3919739,2093.6,2092.9,90.7381]
[1625257745184,2.20527,2093.2,2093.1,2.20527]
[1625257746904,2.20527,2093.2,2093.1,3.20527]
[1625257747156,2.20527,2093.2,2093.1,2.20527]
[1625257747254,4.41054,2093.2,2093.1,2.20527]
[1625257751282,7.49784,2093.2,2092.5,2.20527]
[1625257751484,7.49784,2093.2,2092.2,1.40953795]
[1625257751686,40.6574,2092.9,2092.2,1.40953795]
[1625257751786,40.6574,2092.9,2092.1,1.40992728]
[1625257751935,8.89032461,2093.2,2092.1,2.40992728]
[1625257752638,46.271,2093.1,2092.1,1.0]
[1625257752738,8.89032461,2093.2,2092.1,1.0]
[1625257752985,1.39180816,2093.1,2092.1,1.0]
[1625257753245,2.20527,2092.4,2092.2,2.20527]
[1625257753343,2.20527,2092.4,2092.2,3.20527]
[1625257754248,2.20527,2092.4,2092.3,58.5398]
[1625257754346,2.20527,2092.4,2092.3,59.5398]
[1625257756757,2.20527,2092.6,2092.3,59.5398]
[1625257757807,2.20527,2092.6,2092.3,61.9026]
[1625257758156,2.20527,2092.6,2092.3,66.9026]
[1625257758410,2.20527,2092.6,2092.4,1.4100624]
[1625257758513,2.20527,2092.6,2092.5,1.0]
[1625257759263,2.20527,2092.9,2092.5,3.20527]
[1625257759412,2.20527,2092.9,2092.5,8.20527]
[1625257760827,2.20527,2092.9,2092.5,9.61546303]
[1625257761125,2.20527,2092.9,2092.5,8.20527]
[1625257761326,2.20527,2092.9,2092.8,2.20527]
[1625257761480,2.20527,2092.9,2092.8,3.20527]
[1625257761581,2.20527,2092.9,2092.8,2.20527]
[1625257761982,2.20527,2092.9,2092.8,3.20527]
[1625257762583,2.20527,2092.9,2092.8,6.22467]
[1625257762882,2.20527,2092.9,2092.8,5.22467]
[1625257762984,2.20527,2092.9,2092.8,57.74537]
[1625257765745,2.20527,2092.9,2092.8,2.20527]
[1625257766650,2.20527,2092.9,2092.5,2.20527]
[1625257766900,2.20527,2092.9,2092.1,2.41028133]
[1625257767350,2.20527,2092.2,2092.1,2.41028133]
[1625257768850,2.20527,2092.2,2092.1,1.0]
[1625257769450,2.20527,2092.2,2092.0,2.20527]
[1625257769701,2.20527,2092.2,2091.8,3.20527]
[1625257770300,2.20527,2092.2,2091.8,2.20527]
[1625257770403,2.20527,2092.2,2091.5,1.40975486]
[1625257770549,52.68617,2092.2,2091.5,2.40975486]
[1625257770654,2.20527,2092.2,2091.5,2.40975486]
[1625257770756,2.20527,2092.2,2091.5,1.0]
[1625257771378,2.20527,2091.6,2091.5,1.0]
[1625257773784,2.20527,2091.6,2091.4,2.20527]
[1625257773934,2.20527,2091.6,2091.4,3.20527]
[1625257774193,2.20527,2091.6,2091.4,2.20527]
[1625257774641,2.20527,2091.6,2091.5,60.176]
[1625257774843,2.20527,2091.6,2091.5,61.176]
[1625257780862,2.20527,2091.8,2091.5,61.176]
[1625257781566,2.20527,2091.8,2091.7,2.20527]
[1625257781714,2.20527,2091.8,2091.7,3.20527]
[1625257783430,2.20527,2091.8,2091.7,2.20527]
[1625257784085,2.20527,2091.8,2091.7,3.20527]
[1625257787339,2.20527,2091.8,2091.7,2.20527]